bitfinex-derivatives/quotes_BNBF0:USTF0_20230901
["timestamp","ask_amount","ask_price","bid_price","bid_amount"]
[1693569304686,0.07629423,214.78,214.5,2.0]
[1693569304883,0.07629423,214.77,214.5,2.0]
[1693569305790,0.07629423,214.78,214.5,2.0]
[1693569308089,0.07629423,214.77,214.5,2.0]
[1693569309087,0.07629423,214.78,214.5,2.0]
[1693569309282,0.07629423,214.77,214.5,2.0]
[1693569309487,0.07629423,214.78,214.5,2.0]
[1693569309686,0.15258846,214.8,214.5,2.0]
[1693569309687,0.07629423,214.77,214.5,2.0]
[1693569311892,0.07629423,214.76,214.5,2.0]
[1693569315089,0.07629423,214.75,214.5,2.0]
[1693569317797,0.07629423,214.74,214.5,2.0]
[1693569320698,0.07629423,214.73,214.5,2.0]
[1693569322698,0.07629423,214.72,214.5,2.0]
[1693569323701,0.07629423,214.71,214.5,2.0]
[1693569325702,0.07629423,214.7,214.5,2.0]
[1693569326902,0.07629423,214.69,214.5,2.0]
[1693569327803,0.07629423,214.67,214.5,2.0]
[1693569328206,0.07629423,214.66,214.5,2.0]
[1693569328805,0.07629423,214.67,214.5,2.0]
[1693569333807,0.07629423,214.68,214.5,2.0]
[1693569336808,0.07629423,214.69,214.5,2.0]
[1693569338806,0.07629423,214.7,214.5,2.0]
[1693569340817,0.07629423,214.71,214.5,2.0]
[1693569343116,0.07629423,214.72,214.5,2.0]
[1693569348222,0.07629423,214.73,214.5,2.0]
[1693569350217,0.07629423,214.72,214.5,2.0]
[1693569384353,0.07629423,214.71,214.5,2.0]
[1693569389559,0.07629423,214.72,214.5,2.0]
[1693569413387,0.07629423,214.71,214.5,2.0]
[1693569417396,0.07629423,214.7,214.5,2.0]
[1693569418693,0.07629423,214.71,214.5,2.0]
[1693569421094,0.07629423,214.7,214.5,2.0]
[1693569421799,0.07629423,214.71,214.5,2.0]
[1693569423098,0.07629423,214.7,214.5,2.0]
[1693569435108,0.07629423,214.71,214.5,2.0]
[1693569445012,0.07629423,214.7,214.5,2.0]
[1693569445415,0.07629423,214.71,214.5,2.0]
[1693569448907,0.0724824,214.71,214.5,2.0]
[1693569452612,0.15258846,214.73,214.5,2.0]
[1693569453611,0.15258846,214.72,214.5,2.0]
[1693569454420,0.15258846,214.73,214.5,2.0]
[1693569456813,0.15258846,214.74,214.5,2.0]
[1693569457216,0.15258846,214.75,214.5,2.0]
[1693569484341,0.15258846,214.74,214.5,2.0]
[1693569484540,0.15258846,214.75,214.5,2.0]
[1693569486954,0.15258846,214.74,214.5,2.0]
[1693569498860,0.15258846,214.8,214.5,2.0]
[1693569499367,0.15258846,214.82,214.5,2.0]
[1693569500667,0.15258846,214.83,214.5,2.0]
[1693569501665,0.50862821,214.86,214.5,2.0]
[1693569501666,0.15258846,214.84,214.5,2.0]
[1693569503367,0.15258846,214.85,214.5,2.0]
[1693569506370,0.15258846,214.86,214.5,2.0]
[1693569509574,0.15258846,214.85,214.5,2.0]
[1693569514776,0.15258846,214.84,214.5,2.0]
[1693569517479,0.15258846,214.83,214.5,2.0]
[1693569520380,0.15258846,214.82,214.5,2.0]
[1693569522475,0.15258846,214.81,214.5,2.0]
[1693569522882,0.15258846,214.82,214.5,2.0]
[1693569524583,0.15258846,214.81,214.5,2.0]
[1693569526485,0.15258846,214.8,214.5,2.0]
[1693569528587,0.15258846,214.79,214.5,2.0]
[1693569530489,0.15258846,214.78,214.5,2.0]
[1693569531389,0.15258846,214.77,214.5,2.0]
[1693569531892,0.15258846,214.78,214.5,2.0]
[1693569532390,0.15258846,214.77,214.5,2.0]
[1693569533490,0.15258846,214.75,214.5,2.0]
[1693569541790,0.15258846,214.74,214.5,2.0]
[1693569541995,0.15258846,214.75,214.5,2.0]
[1693569544497,0.15258846,214.76,214.5,2.0]
[1693569546499,0.15258846,214.77,214.5,2.0]
[1693569547600,0.15258846,214.78,214.5,2.0]
[1693569548100,0.15258846,214.77,214.5,2.0]
[1693569548495,0.15258846,214.78,214.5,2.0]
[1693569549403,0.15258846,214.79,214.5,2.0]
[1693569550605,0.15258846,214.8,214.5,2.0]
[1693569551505,0.15258846,214.81,214.5,2.0]
[1693569554399,0.15258846,214.82,214.5,2.0]
[1693569563011,0.15258846,214.81,214.5,2.0]
[1693569568815,0.07632823,214.74,214.5,2.0]
[1693569569011,0.07632823,214.73,214.5,2.0]
[1693569569817,0.07632823,214.75,214.5,2.0]
[1693569570617,0.07632823,214.76,214.5,2.0]
[1693569571615,0.07632823,214.77,214.5,2.0]
[1693569573821,0.07632823,214.78,214.5,2.0]
[1693569576622,0.07632823,214.79,214.5,2.0]
[1693569577619,0.07632823,214.78,214.5,2.0]
[1693569579518,0.07632823,214.77,214.5,2.0]
[1693569581724,0.07632823,214.76,214.5,2.0]
[1693569584624,0.07632823,214.75,214.5,2.0]
[1693569588529,0.07632823,214.74,214.5,2.0]
[1693569592633,0.07632823,214.73,214.5,2.0]
[1693569596527,0.07632823,214.72,214.5,2.0]
[1693569599832,0.07632823,214.71,214.5,2.0]
[1693569601735,0.07632823,214.7,214.5,2.0]
[1693569602535,0.07632823,214.69,214.5,2.0]
[1693569603630,0.07632823,214.67,214.5,2.0]
[1693569605336,0.07632823,214.72,214.5,2.0]
[1693569605537,0.07632823,214.75,214.5,2.0]
[1693569605737,0.07632823,214.74,214.5,2.0]
[1693569606535,0.07632823,214.75,214.5,2.0]
[1693569606737,0.07632823,214.76,214.5,2.0]
[1693569607737,0.07632823,214.77,214.5,2.0]
[1693569608633,0.07632823,214.78,214.5,2.0]
[1693569609732,0.07632823,214.79,214.5,2.0]
[1693569612537,0.07632823,214.8,214.5,2.0]
[1693569618839,0.07632823,214.81,214.5,2.0]
[1693569624549,0.07632823,214.8,214.5,2.0]
[1693569628555,0.07632823,214.79,214.5,2.0]
[1693569631659,0.07632823,214.78,214.5,2.0]
[1693569633557,0.07632823,214.77,214.5,2.0]
[1693569634556,0.07632823,214.76,214.5,2.0]
[1693569637459,0.07632823,214.75,214.5,2.0]
[1693569638553,0.07632823,214.74,214.5,2.0]
[1693569639662,0.07632823,214.72,214.5,2.0]
[1693569643566,0.07632823,214.73,214.5,2.0]
[1693569646266,0.07632823,214.74,214.5,2.0]
[1693569648571,0.07632823,214.75,214.5,2.0]
[1693569650474,0.07632823,214.76,214.5,2.0]
[1693569652573,0.07632823,214.77,214.5,2.0]
[1693569653875,0.07632823,214.78,214.5,2.0]
[1693569654775,0.07632823,214.79,214.5,2.0]
[1693569661680,1.01725642,214.87,214.5,2.0]
[1693569661681,0.07632823,214.81,214.5,2.0]
[1693569662184,0.07632823,214.82,214.5,2.0]
[1693569662577,0.07632823,214.83,214.5,2.0]
[1693569662975,0.15258846,214.85,214.5,2.0]
[1693569662976,0.07632823,214.88,214.5,2.0]
[1693569663175,0.07632823,214.87,214.5,2.0]
[1693569663379,0.07632823,214.9,214.5,2.0]
[1693569664380,0.07632823,214.92,214.5,2.0]
[1693569665380,0.07632823,214.93,214.5,2.0]
[1693569666581,0.07632823,214.94,214.5,2.0]
[1693569668576,0.07632823,214.93,214.5,2.0]
[1693569669379,0.07632823,214.92,214.5,2.0]
[1693569670385,0.07632823,214.91,214.5,2.0]
[1693569670680,0.07632823,214.92,214.5,2.0]
[1693569671487,0.07632823,214.91,214.5,2.0]
[1693569672585,0.07632823,214.9,214.5,2.0]
[1693569673586,0.07632823,214.89,214.5,2.0]
[1693569673787,0.07632823,214.9,214.5,2.0]
[1693569674489,0.07632823,214.89,214.5,2.0]
[1693569675388,1.01725642,214.96,214.5,2.0]
[1693569675389,0.07632823,214.88,214.5,2.0]
[1693569677390,0.07632823,214.87,214.5,2.0]
[1693569679488,0.07632823,214.86,214.5,2.0]
[1693569681495,0.07632823,214.85,214.5,2.0]
[1693569683395,0.07632823,214.84,214.5,2.0]
[1693569684602,0.07632823,214.83,214.5,2.0]
[1693569687300,0.07632823,214.82,214.5,2.0]
[1693569687501,0.07632823,214.81,214.5,2.0]
[1693569689506,0.07632823,214.8,214.5,2.0]
[1693569690708,0.07632823,214.79,214.5,2.0]
[1693569691907,0.07632823,214.78,214.5,2.0]
[1693569693609,0.07632823,214.77,214.5,2.0]
[1693569694410,0.07632823,214.73,214.5,2.0]
[1693569694611,0.07632823,214.71,214.5,2.0]
[1693569695705,0.07632823,214.72,214.5,2.0]
[1693569696511,0.07632823,214.73,214.5,2.0]
[1693569697111,0.07632823,214.72,214.5,2.0]
[1693569697510,0.07632823,214.73,214.5,2.0]
[1693569698613,0.07632823,214.74,214.5,2.0]
[1693569699817,0.07632823,214.75,214.5,2.0]
[1693569700009,2.54314107,214.88,214.5,2.0]
[1693569700010,0.07632823,214.8,214.5,2.0]
[1693569701110,0.15258846,214.83,214.5,2.0]
[1693569701111,0.07632823,214.81,214.5,2.0]
[1693569704619,0.07632823,214.82,214.5,2.0]
[1693569706919,0.07632823,214.83,214.5,2.0]
[1693569708520,0.07632823,214.84,214.5,2.0]
[1693569710820,0.07632823,214.85,214.5,2.0]
[1693569711025,0.07632823,214.86,214.5,2.0]
[1693569711621,0.07632823,214.87,214.5,2.0]
[1693569712625,0.07632823,214.88,214.5,2.0]
[1693569713625,0.07632823,214.89,214.5,2.0]
[1693569713827,0.07632823,214.88,214.5,2.0]
[1693569714430,0.07632823,214.89,214.5,2.0]
[1693569714929,0.07632823,214.9,214.5,2.0]
[1693569715630,0.07632823,214.91,214.5,2.0]
[1693569716026,0.07632823,214.9,214.5,2.0]
[1693569716430,0.07632823,214.91,214.5,2.0]
[1693569716629,0.07632823,214.92,214.5,2.0]
[1693569717628,0.07632823,214.93,214.5,2.0]
[1693569718632,0.07632823,214.95,214.5,2.0]
[1693569719532,0.07632823,214.96,214.5,2.0]
[1693569723133,0.07632823,214.97,214.5,2.0]
[1693569723332,0.07632823,214.96,214.5,2.0]
[1693569723527,0.07632823,214.97,214.5,2.0]
[1693569726935,0.07632823,214.98,214.5,2.0]
[1693569727236,0.07632823,214.97,214.5,2.0]
[1693569727435,0.07632823,214.98,214.5,2.0]
[1693569729537,0.07632823,214.97,214.5,2.0]
[1693569730438,0.07632823,214.96,214.5,2.0]
[1693569731439,0.07632823,214.95,214.5,2.0]
[1693569732641,0.07632823,214.94,214.5,2.0]
[1693569733541,0.07632823,214.93,214.5,2.0]
[1693569734642,0.07632823,214.91,214.5,2.0]
[1693569737945,0.07632823,214.9,214.5,2.0]
[1693569738340,0.07632823,214.91,214.5,2.0]
[1693569738543,0.07632823,214.9,214.5,2.0]
[1693569744447,0.07632823,214.89,214.5,2.0]
[1693569748750,0.07632823,214.9,214.5,2.0]
[1693569754450,0.07632823,214.92,214.5,2.0]
[1693569756959,0.07632823,214.94,214.5,2.0]
[1693569757160,0.07632823,215.07,214.5,2.0]
[1693569757360,0.07632823,215.1,214.5,2.0]
[1693569758160,0.07632823,215.07,214.5,2.0]
[1693569758661,0.07632823,215.08,214.5,2.0]
[1693569759255,0.07632823,215.06,214.5,2.0]
[1693569759460,0.07632823,215.07,214.5,2.0]
[1693569760162,0.07632823,215.05,214.5,2.0]
[1693569760956,0.07632823,215.01,214.5,2.0]
[1693569761161,0.07632823,215.0,214.5,2.0]
[1693569762463,0.07632823,214.99,214.5,2.0]
[1693569763164,0.07632823,214.98,214.5,2.0]
[1693569764161,0.07632823,214.97,214.5,2.0]
[1693569766366,0.07632823,214.96,214.5,2.0]
[1693569767362,0.07632823,214.95,214.5,2.0]
[1693569769166,0.07632823,214.94,214.5,2.0]
[1693569771166,0.07632823,214.93,214.5,2.0]
[1693569772564,0.07632823,214.92,214.5,2.0]
[1693569774269,0.07632823,214.91,214.5,2.0]
[1693569776170,0.07632823,214.9,214.5,2.0]
[1693569778075,0.07632823,214.89,214.5,2.0]
[1693569781067,0.07632823,214.88,214.5,2.0]
[1693569781375,0.07632823,214.89,214.5,2.0]
[1693569782170,0.07632823,214.88,214.5,2.0]
[1693569784177,0.07632823,214.87,214.5,2.0]
[1693569785477,0.07632823,214.86,214.5,2.0]
[1693569787178,0.07632823,214.85,214.5,2.0]
[1693569788381,0.07632823,214.84,214.5,2.0]
[1693569789182,0.07632823,214.82,214.5,2.0]
[1693569790283,0.07632823,214.81,214.5,2.0]
[1693569791184,0.07632823,214.78,214.5,2.0]
[1693569795086,0.07632823,214.76,214.5,2.0]
[1693569795286,0.07632823,214.77,214.5,2.0]
[1693569797188,0.07632823,214.78,214.5,2.0]
[1693569798483,0.07632823,214.79,214.5,2.0]
[1693569800192,0.07632823,214.8,214.5,2.0]
[1693569801092,0.07632823,214.81,214.5,2.0]
[1693569802192,0.07632823,214.82,214.5,2.0]
[1693569803194,0.07632823,214.83,214.5,2.0]
[1693569804092,0.07632823,214.84,214.5,2.0]
[1693569805290,0.07632823,214.85,214.5,2.0]
[1693569805492,0.07632823,214.86,214.5,2.0]
[1693569806198,0.07632823,214.87,214.5,2.0]
[1693569807093,0.07632823,214.88,214.5,2.0]
[1693569808195,0.07632823,214.89,214.5,2.0]
[1693569809401,0.07632823,214.91,214.5,2.0]
[1693569810200,0.07632823,214.92,214.5,2.0]
[1693569811103,0.07632823,214.94,214.5,2.0]
[1693569812300,0.07632823,214.96,214.5,2.0]
[1693569812501,0.07632823,214.97,214.5,2.0]
[1693569813205,0.07632823,214.99,214.5,2.0]
[1693569813403,0.07632823,214.93,214.5,2.0]
[1693569814204,0.07632823,214.95,214.5,2.0]
[1693569814504,0.07632823,214.96,214.5,2.0]
[1693569815202,0.07632823,214.98,214.5,2.0]
[1693569816203,0.07632823,215.0,214.5,2.0]
[1693569818505,0.07632823,214.99,214.5,2.0]
[1693569819298,0.07632823,215.0,214.5,2.0]
[1693569819502,0.07632823,214.99,214.5,2.0]
[1693569821204,0.07632823,214.98,214.5,2.0]
[1693569822299,0.07632823,214.97,214.5,2.0]
[1693569822904,0.07632823,215.02,214.5,2.0]
[1693569823507,0.07632823,214.98,214.5,2.0]
[1693569824602,0.07632823,214.97,214.5,2.0]
[1693569826403,0.07632823,214.96,214.5,2.0]
[1693569828502,0.07632823,214.95,214.5,2.0]
[1693569828705,0.07632823,214.96,214.5,2.0]
[1693569829106,0.07632823,214.95,214.5,2.0]
[1693569831512,0.07632823,214.94,214.5,2.0]
[1693569834112,0.07632823,214.93,214.5,2.0]
[1693569836407,0.07632823,214.92,214.5,2.0]
[1693569838419,0.07632823,214.91,214.5,2.0]
[1693569841518,0.07632823,214.9,214.5,2.0]
[1693569843622,0.07632823,214.89,214.5,2.0]
[1693569844420,0.07632823,214.88,214.5,2.0]
[1693569846619,0.07632823,214.87,214.5,2.0]
[1693569847324,0.07632823,214.85,214.5,2.0]
[1693569849430,0.07632823,214.86,214.5,2.0]
[1693569852129,0.07632823,214.87,214.5,2.0]
[1693569852330,0.07632823,214.86,214.5,2.0]
[1693569853124,0.07632823,214.87,214.5,2.0]
[1693569854335,0.07632823,214.86,214.5,2.0]
[1693569854528,0.07632823,214.87,214.5,2.0]
[1693569856433,0.07632823,214.88,214.5,2.0]
[1693569858535,0.07632823,214.87,214.5,2.0]
[1693569859229,0.07632823,214.88,214.5,2.0]
[1693569860432,0.07632823,214.89,214.5,2.0]
[1693569862138,0.15258846,214.92,214.5,2.0]
[1693569862139,0.07632823,214.9,214.5,2.0]
[1693569863542,0.07632823,214.91,214.5,2.0]
[1693569864639,0.07632823,214.92,214.5,2.0]
[1693569865632,0.07632823,214.93,214.5,2.0]
[1693569866442,0.07632823,214.94,214.5,2.0]
[1693569870446,0.07632823,214.95,214.5,2.0]
[1693569872549,0.07632823,214.94,214.5,2.0]
[1693569879855,0.15258846,214.96,214.5,2.0]
[1693569879856,0.07632823,214.95,214.5,2.0]
[1693569880050,0.07632823,214.94,214.5,2.0]
[1693569880754,0.07632823,214.95,214.5,2.0]
[1693569911579,0.07632823,214.96,214.5,2.0]
[1693569918084,0.07632823,214.95,214.5,2.0]
[1693569920889,0.15258846,214.98,214.5,2.0]
[1693569920890,0.07632823,214.96,214.5,2.0]
[1693569921488,0.07632823,214.95,214.5,2.0]
[1693569928694,0.07632823,214.94,214.5,2.0]
[1693569933000,0.07632823,214.95,214.5,2.0]
[1693569933202,0.07632823,214.94,214.5,2.0]
[1693569933402,0.07632823,214.95,214.5,2.0]
[1693569938500,0.15245547,214.97,214.5,2.0]
[1693569938700,0.07622773,214.95,214.5,2.0]
[1693569955413,0.07622773,214.94,214.5,2.0]
[1693569963422,0.07622773,214.93,214.5,2.0]
[1693570012357,0.07622773,214.92,214.5,2.0]
[1693570013160,0.07622773,214.93,214.5,2.0]
[1693570035277,0.07622773,214.94,214.5,2.0]
[1693570035482,0.07622773,214.93,214.5,2.0]
[1693570035873,0.07622773,214.94,214.5,2.0]
[1693570036375,0.07622773,214.95,214.5,2.0]
[1693570036574,0.07622773,214.94,214.5,2.0]
[1693570037482,0.07622773,214.95,214.5,2.0]
[1693570038476,0.07622773,215.0,214.5,2.0]
[1693570038982,0.07622773,215.01,214.5,2.0]
[1693570039481,0.07622773,215.04,214.5,2.0]
[1693570040278,0.07622773,215.05,214.5,2.0]
[1693570043284,0.07622773,215.06,214.5,2.0]
[1693570043585,0.07622773,215.02,214.5,2.0]
[1693570043780,0.07622773,215.01,214.5,2.0]
[1693570043985,0.07622773,215.0,214.5,2.0]
[1693570046690,0.07622773,215.01,214.5,2.0]
[1693570051391,0.15245547,215.03,214.5,2.0]
[1693570051392,0.07622773,215.0,214.5,2.0]
[1693570051790,0.07622773,215.01,214.5,2.0]
[1693570053887,0.07622773,215.0,214.5,2.0]
[1693570066204,0.07622773,214.99,214.5,2.0]
[1693570075318,0.07622773,214.98,214.5,2.0]
[1693570076319,0.07622773,214.97,214.5,2.0]
[1693570077317,0.07622773,214.96,214.5,2.0]
[1693570078317,0.07622773,214.94,214.5,2.0]
[1693570082223,0.07622773,214.93,214.5,2.0]
[1693570082422,0.07622773,214.94,214.5,2.0]
[1693570082621,0.07622773,214.93,214.5,2.0]
[1693570082818,0.07622773,214.94,214.5,2.0]
[1693570083724,0.07622773,214.93,214.5,2.0]
[1693570084624,0.07622773,214.94,214.5,2.0]
[1693570112449,0.07622773,214.93,214.5,2.0]
[1693570116052,0.07622773,214.94,214.5,2.0]
[1693570116845,0.07622773,214.93,214.5,2.0]
[1693570117049,0.07622773,214.94,214.5,2.0]
[1693570124553,0.07622773,214.93,214.5,2.0]
[1693570124751,0.07622773,214.92,214.5,2.0]
[1693570126349,0.50818491,214.97,214.5,2.0]
[1693570126350,0.07622773,214.93,214.5,2.0]
[1693570133455,0.07622773,214.94,214.5,2.0]
[1693570134763,0.07622773,214.93,214.5,2.0]
[1693570135158,0.07622773,214.94,214.5,2.0]
[1693570140571,0.07622773,214.95,214.5,2.0]
[1693570140770,0.07622773,214.94,214.5,2.0]
[1693570140971,0.07622773,214.95,214.5,2.0]
[1693570142366,0.07622773,214.94,214.5,2.0]
[1693570155387,0.07622773,214.93,214.5,2.0]
[1693570155583,0.07622773,214.94,214.5,2.0]
[1693570155783,0.07622773,214.93,214.5,2.0]
[1693570159579,0.07622773,214.92,214.5,2.0]
[1693570160180,0.07622773,214.93,214.5,2.0]
[1693570160579,0.07622773,214.92,214.5,2.0]
[1693570161785,0.07622773,214.93,214.5,2.0]
[1693570161982,0.07622773,214.92,214.5,2.0]
[1693570163985,0.07622773,214.93,214.5,2.0]
[1693570166284,0.07622773,214.97,214.5,2.0]
[1693570166490,0.07622773,214.98,214.5,2.0]
[1693570166686,0.07622773,214.99,214.5,2.0]
[1693570166988,0.07622773,215.01,214.5,2.0]
[1693570167789,0.07622773,215.02,214.5,2.0]
[1693570168489,0.07622773,215.03,214.5,2.0]
[1693570169588,0.07622773,215.04,214.5,2.0]
[1693570170788,0.07622773,215.05,214.5,2.0]
[1693570172894,0.07622773,215.06,214.5,2.0]
[1693570173787,0.07622773,215.05,214.5,2.0]
[1693570175793,0.07622773,215.04,214.5,2.0]
[1693570178292,0.07622773,215.03,214.5,2.0]
[1693570180194,0.07622773,215.02,214.5,2.0]
[1693570182400,0.07622773,215.01,214.5,2.0]
[1693570184601,0.07622773,215.0,214.5,2.0]
[1693570186804,0.07622773,214.99,214.5,2.0]
[1693570191912,0.07622773,214.98,214.5,2.0]
[1693570193809,0.07622773,214.97,214.5,2.0]
[1693570195914,0.07622773,214.96,214.5,2.0]
[1693570197817,0.07622773,214.95,214.5,2.0]
[1693570199020,0.07622773,214.94,214.5,2.0]
[1693570199922,0.07622773,214.93,214.5,2.0]
[1693570200822,0.07622773,214.91,214.5,2.0]
[1693570203826,0.07622773,214.92,214.5,2.0]
[1693570204228,0.07622773,214.91,214.5,2.0]
[1693570204727,0.07622773,214.92,214.5,2.0]
[1693570207724,0.07622773,214.93,214.5,2.0]
[1693570210726,0.07622773,214.94,214.5,2.0]
[1693570212928,0.15245547,214.96,214.5,2.0]
[1693570212929,0.07622773,214.95,214.5,2.0]
[1693570214433,0.07622773,214.96,214.5,2.0]
[1693570215733,0.07622773,214.97,214.5,2.0]
[1693570216830,0.07622773,214.98,214.5,2.0]
[1693570217836,0.07622773,214.99,214.5,2.0]
[1693570218728,0.07622773,215.0,214.5,2.0]
[1693570220431,0.07622773,215.01,214.5,2.0]
[1693570232348,0.07622773,215.0,214.5,2.0]
[1693570232549,0.07622773,215.01,214.5,2.0]
[1693570232950,0.07622773,215.0,214.5,2.0]
[1693570233849,0.07622773,215.01,214.5,2.0]
[1693570238054,0.07622773,215.0,214.5,2.0]
[1693570238248,0.07622773,215.01,214.5,2.0]
[1693570238649,0.07622773,215.0,214.5,2.0]
[1693570240456,0.07622773,215.01,214.5,2.0]
[1693570240853,0.07622773,215.0,214.5,2.0]
[1693570243658,0.07622773,215.01,214.5,2.0]
[1693570245959,0.07622773,215.0,214.5,2.0]
[1693570247162,0.07622773,215.01,214.5,2.0]
[1693570247363,0.07622773,215.0,214.5,2.0]
[1693570247764,0.07622773,215.01,214.5,2.0]
[1693570248160,0.07622773,215.0,214.5,2.0]
[1693570248562,0.07622773,215.01,214.5,2.0]
[1693570249866,0.07622773,215.0,214.5,2.0]
[1693570250262,0.07622773,215.01,214.5,2.0]
[1693570252065,0.07622773,215.0,214.5,2.0]
[1693570252265,0.07622773,215.01,214.5,2.0]
[1693570253369,0.07622773,215.0,214.5,2.0]
[1693570254475,0.07622773,215.01,214.5,2.0]
[1693570255878,0.07622773,215.0,214.5,2.0]
[1693570257977,0.07622773,215.01,214.5,2.0]
[1693570263582,0.07622773,215.0,214.5,2.0]
[1693570264182,0.07622773,215.01,214.5,2.0]
[1693570264982,0.07622773,215.0,214.5,2.0]
[1693570272388,0.07622773,214.99,214.5,2.0]
[1693570272788,0.07622773,215.0,214.5,2.0]
[1693570306723,0.07622773,214.99,214.5,2.0]
[1693570308524,0.07622773,215.0,214.5,2.0]
[1693570308724,0.07622773,214.99,214.5,2.0]
[1693570308920,0.07622773,215.0,214.5,2.0]
[1693570311626,0.07622773,214.99,214.5,2.0]
[1693570312027,0.07622773,215.0,214.5,2.0]
[1693570314030,0.07622773,214.99,214.5,2.0]
[1693570317233,0.07622773,214.93,214.5,2.0]
[1693570317734,0.07622773,214.96,214.5,2.0]
[1693570318826,0.07622773,214.97,214.5,2.0]
[1693570319830,0.07622773,214.98,214.5,2.0]
[1693570322730,0.07622773,214.99,214.5,2.0]
[1693570325236,0.07622773,215.0,214.5,2.0]
[1693570333440,0.07622773,214.99,214.5,2.0]
[1693570336643,0.07622773,214.98,214.5,2.0]
[1693570339743,0.07622773,214.97,214.5,2.0]
[1693570341744,0.07622773,214.96,214.5,2.0]
[1693570341938,0.07335799,214.96,214.5,2.0]
[1693570344742,0.15245547,214.97,214.5,2.0]
[1693570346745,0.15245547,214.96,214.5,2.0]
[1693570348647,0.15245547,214.95,214.5,2.0]
[1693570350348,0.15245547,214.94,214.5,2.0]
[1693570350850,0.15245547,214.93,214.5,2.0]
[1693570351750,0.15245547,214.91,214.5,2.0]
[1693570354752,0.15245547,214.92,214.5,2.0]
[1693570356353,0.15245547,214.91,214.5,2.0]
[1693570359350,0.15245547,214.92,214.5,2.0]
[1693570359755,0.15245547,214.91,214.5,2.0]
[1693570360652,0.15245547,214.92,214.5,2.0]
[1693570361457,0.15245547,214.91,214.5,2.0]
[1693570361658,0.15245547,214.92,214.5,2.0]
[1693570362757,0.15245547,214.91,214.5,2.0]
[1693570363557,0.15245547,214.92,214.5,2.0]
[1693570365655,0.15245547,214.93,214.5,2.0]
[1693570366458,0.15245547,214.92,214.5,2.0]
[1693570366658,0.15245547,214.93,214.5,2.0]
[1693570368663,0.15245547,214.94,214.5,2.0]
[1693570369661,0.15245547,214.95,214.5,2.0]
[1693570370261,0.15245547,214.94,214.5,2.0]
[1693570370657,0.15245547,214.95,214.5,2.0]
[1693570371763,0.15245547,214.96,214.5,2.0]
[1693570374658,0.15245547,214.97,214.5,2.0]
[1693570377264,0.15245547,214.96,214.5,2.0]
[1693570379767,0.15245547,214.97,214.5,2.0]
[1693570383361,0.15245547,214.96,214.5,2.0]
[1693570386668,0.15245547,214.95,214.5,2.0]
[1693570390265,0.15245547,214.94,214.5,2.0]
[1693570394272,0.15245547,214.93,214.5,2.0]
[1693570395972,0.15245547,214.94,214.5,2.0]
[1693570396175,0.15245547,214.93,214.5,2.0]
[1693570406184,0.15245547,214.94,214.5,2.0]
[1693570418193,0.15245547,214.95,214.5,2.0]
[1693570418691,0.15245547,214.94,214.5,2.0]
[1693570420590,0.15245547,214.95,214.5,2.0]
[1693570436199,0.15245547,214.94,214.5,2.0]
[1693570452520,0.15245547,214.95,214.5,2.0]
[1693570459829,0.15245547,214.94,214.5,2.0]
[1693570462025,0.07627661,214.92,214.5,2.0]
[1693570464827,0.07627661,214.91,214.5,2.0]
[1693570465934,0.07627661,214.92,214.5,2.0]
[1693570479447,0.07627661,214.93,214.5,2.0]
[1693570480848,0.07627661,214.92,214.5,2.0]
[1693570481449,0.07627661,214.93,214.5,2.0]